bitfinex/quotes_SOLUSD_20230103
["timestamp","ask_amount","ask_price","bid_price","bid_amount"]
[1672769624825,50.03041555,12.794,12.773,11.08137784]
[1672769625035,58.68,12.793,12.773,11.08137784]
[1672769625222,78.66,12.797,12.78,8.62]
[1672769625434,58.63,12.804,12.78,8.62]
[1672769625647,58.63,12.804,12.782,30.0]
[1672769625880,30.0,12.803,12.782,30.0]
[1672769626081,58.64,12.802,12.783,85.44585461]
[1672769626295,20.0,12.801,12.783,42.33035901]
[1672769626612,20.0,12.801,12.778,65.1372131]
[1672769626613,30.0,12.799,12.778,65.1372131]
[1672769626801,30.0,12.797,12.778,104.4638887]
[1672769627011,30.0,12.795,12.78,48.99058297]
[1672769627225,58.68,12.794,12.778,62.6372131]
[1672769628075,30.0,12.793,12.778,62.6372131]
[1672769628286,58.69,12.792,12.778,62.6372131]
[1672769628704,31.301488,12.794,12.778,62.6372131]
[1672769628919,31.301488,12.794,12.781,30.0]
[1672769629124,15.3173,12.8,12.781,30.0]
[1672769629321,78.65,12.799,12.781,30.0]
[1672769629534,78.65,12.799,12.782,48.99058297]
[1672769629744,78.65,12.799,12.783,30.0]
[1672769630180,78.65,12.799,12.784,48.99058297]
[1672769630495,30.0,12.798,12.78,8.54]
[1672769630712,78.66,12.797,12.78,8.54]
[1672769630910,30.0,12.796,12.771,140.3002]
[1672769631112,58.67,12.795,12.771,140.3002]
[1672769631444,30.0,12.794,12.771,110.3002]
[1672769631637,78.68,12.793,12.77,53.995839]
[1672769631844,58.68,12.793,12.78,8.62]
[1672769632068,58.67,12.795,12.78,8.62]
[1672769632372,30.0,12.794,12.77,88.575839]
[1672769632582,58.68,12.793,12.771,30.0]
[1672769632812,58.68,12.793,12.779,30.0]
[1672769633017,30.0,12.795,12.773,11.08137784]
[1672769633231,58.68,12.794,12.778,57.6372131]
[1672769633430,30.0,12.793,12.778,57.6372131]
[1672769633757,30.0,12.791,12.778,57.6372131]
[1672769634072,58.7,12.79,12.778,57.6372131]
[1672769634279,58.69,12.792,12.778,57.6372131]
[1672769634495,50.0,12.791,12.778,57.6372131]
[1672769634709,30.0,12.789,12.778,57.6372131]
[1672769634903,78.7,12.788,12.778,57.6372131]
[1672769635328,30.0,12.787,12.778,57.6372131]
[1672769635647,20.0,12.786,12.778,57.6372131]
[1672769635842,88.72,12.785,12.778,57.6372131]
[1672769637626,20.0,12.784,12.778,0.0072131]
[1672769637841,30.0,12.782,12.778,0.0072131]
[1672769638056,30.0,12.78,12.778,0.0072131]
[1672769638365,30.0,12.78,12.77,0.005839]
[1672769638366,30.0,12.778,12.77,0.005839]
[1672769638577,73.39177264,12.776,12.77,0.005839]
[1672769638785,47.00484786,12.773,12.76,32.671547]
[1672769638994,8.57,12.77,12.76,30.671547]
[1672769639207,43.76162442,12.772,12.76,41.75292484]
[1672769639415,71.91715592,12.774,12.76,30.671547]
[1672769639416,30.0,12.77,12.76,30.671547]
[1672769639625,42.12080037,12.768,12.76,30.671547]
[1672769639835,30.0,12.766,12.76,30.671547]
[1672769640059,43.03410127,12.773,12.76,30.671547]
[1672769640267,20.0,12.772,12.76,30.671547]
[1672769640681,30.0,12.77,12.76,30.671547]
[1672769640896,78.79,12.769,12.76,30.671547]
[1672769641857,30.0,12.768,12.76,0.001547]
[1672769642167,42.88475108,12.765,12.76,0.001547]
[1672769642352,58.82,12.764,12.76,0.001547]
[1672769642570,58.81,12.765,12.76,0.001547]
[1672769642775,30.0,12.764,12.76,0.001547]
[1672769642993,58.82,12.763,12.76,0.001547]
[1672769643414,30.0,12.762,12.76,0.001547]
[1672769643626,30.0,12.76,12.75,45.445839]
[1672769643838,78.83,12.761,12.75,45.445839]
[1672769643839,9.38658391,12.764,12.751,52.06183998]
[1672769644053,30.0,12.77,12.75,45.445839]
[1672769644255,20.0,12.767,12.75,45.445839]
[1672769644472,88.81,12.766,12.75,45.445839]
[1672769644677,30.0,12.764,12.75,44.945839]
[1672769644876,78.82,12.763,12.75,44.945839]
[1672769645091,30.0,12.762,12.75,44.945839]
[1672769645302,78.83,12.761,12.75,44.945839]
[1672769645636,30.0,12.76,12.75,44.945839]
[1672769645952,78.84,12.759,12.75,44.945839]
[1672769646466,30.0,12.758,12.75,44.945839]
[1672769646662,30.0,12.756,12.75,44.945839]
[1672769646999,58.86,12.755,12.75,44.945839]
[1672769647213,30.0,12.754,12.75,0.005839]
[1672769647529,30.0,12.752,12.75,0.005839]
[1672769647722,78.88,12.751,12.75,0.005839]
[1672769648472,45.0675112,12.75,12.741,0.0098795]
[1672769648660,88.88,12.749,12.741,0.0098795]
[1672769648869,53.7514633,12.748,12.741,0.0098795]
[1672769649083,30.0,12.746,12.741,0.0098795]
[1672769649304,112.6514633,12.745,12.741,0.0098795]
[1672769649516,30.0,12.744,12.741,465.8316432]
[1672769649726,58.91,12.743,12.741,465.8316432]
[1672769650453,30.0,12.742,12.741,464.8316432]
[1672769650875,58.91,12.743,12.741,464.8316432]
[1672769651206,30.0,12.746,12.741,464.8316432]
[1672769651611,30.0,12.75,12.741,464.8316432]
[1672769651820,78.88,12.749,12.741,464.8316432]
[1672769652462,73.15,12.76,12.741,464.8316432]
[1672769652463,2.43,12.764,12.741,464.8316432]
[1672769652657,2.43,12.764,12.742,30.0]
[1672769652868,2.43,12.764,12.741,464.8316432]
[1672769653093,30.0,12.762,12.741,464.8316432]
[1672769653289,8.58,12.76,12.741,464.8316432]
[1672769653510,30.0,12.758,12.741,464.8316432]
[1672769653829,15.3173,12.75,12.741,464.8316432]
[1672769654459,58.88,12.749,12.741,464.8316432]
[1672769655090,15.3173,12.75,12.741,464.8316432]
[1672769655725,78.88,12.749,12.741,464.8316432]
[1672769656337,30.0,12.748,12.741,464.8316432]
[1672769656543,30.0,12.746,12.741,464.8316432]
[1672769656769,58.9,12.745,12.741,464.8316432]
[1672769657088,50.0,12.744,12.741,464.8316432]
[1672769657307,58.91,12.743,12.741,464.8316432]
[1672769657703,58.9,12.745,12.741,464.8316432]
[1672769658029,30.0,12.749,12.741,464.8316432]
[1672769658234,20.0,12.748,12.741,464.8316432]
[1672769658776,58.89,12.747,12.741,464.8316432]
[1672769658967,30.0,12.746,12.741,464.8316432]
[1672769659183,58.9,12.745,12.741,464.8316432]
[1672769660137,30.0,12.744,12.741,464.8316432]
[1672769660341,30.0,12.742,12.741,464.8316432]
[1672769660777,58.91,12.743,12.741,464.8316432]
[1672769661181,20.0,12.742,12.741,464.8316432]
[1672769661390,78.92,12.742,12.741,464.8316432]
[1672769662562,20.0,12.742,12.741,464.8316432]
[1672769662971,30.0,12.748,12.741,464.8316432]
[1672769663189,74.1973,12.75,12.741,464.8316432]
[1672769663405,15.3173,12.75,12.741,464.8316432]
[1672769664023,15.3173,12.75,12.742,30.0]
[1672769664668,15.3173,12.75,12.743,43.08949435]
[1672769664867,15.3173,12.75,12.742,11.08137784]
[1672769665074,30.0,12.748,12.741,465.2240732]
[1672769665278,58.89,12.747,12.741,465.2240732]
[1672769665810,58.88,12.749,12.741,465.2240732]
[1672769666348,15.3173,12.75,12.742,30.0]
[1672769667699,15.3173,12.75,12.742,494.8316432]
[1672769667910,15.3173,12.75,12.742,464.8316432]
[1672769669906,58.88,12.749,12.742,464.8316432]
[1672769670552,20.0,12.748,12.742,464.8316432]
[1672769670949,20.0,12.749,12.742,464.8316432]
[1672769671794,15.3173,12.75,12.743,30.0]
[1672769672433,15.3173,12.75,12.742,464.8316432]
[1672769672647,15.3173,12.75,12.743,30.0]
[1672769673601,15.3173,12.75,12.742,464.8316432]
[1672769674227,78.88,12.749,12.742,464.8316432]
[1672769676206,20.0,12.749,12.742,464.8316432]
[1672769677275,20.0,12.749,12.743,30.0]
[1672769677805,20.0,12.749,12.742,464.8316432]
[1672769678114,15.3173,12.75,12.742,464.8316432]
[1672769678315,15.3173,12.75,12.743,30.0]
[1672769678648,15.3173,12.75,12.742,464.8316432]
[1672769678849,78.88,12.749,12.742,464.8316432]
[1672769679278,20.0,12.749,12.742,464.8316432]
[1672769679697,15.3173,12.75,12.743,30.0]
[1672769680097,15.3173,12.75,12.742,444.8316432]
[1672769680308,15.3173,12.75,12.743,30.0]
[1672769680636,15.3173,12.75,12.742,444.8316432]
[1672769681062,58.88,12.749,12.742,444.8316432]
[1672769681264,20.0,12.748,12.742,444.8316432]
[1672769681480,15.3173,12.75,12.742,444.8316432]
[1672769682415,15.3173,12.75,12.743,30.0]
[1672769682842,15.3173,12.75,12.743,474.8316432]
[1672769683037,0.0073,12.75,12.744,20.0]
[1672769683251,0.0073,12.75,12.745,30.0]
[1672769683467,0.0073,12.75,12.746,20.0]
[1672769683681,0.0073,12.75,12.747,30.0]
[1672769684827,0.0073,12.75,12.747,474.8316432]
[1672769687263,58.81,12.765,12.748,30.0]
[1672769687476,88.8,12.768,12.75,8.62]
[1672769687897,58.8,12.768,12.75,8.62]
[1672769688085,58.78,12.771,12.751,20.0]
[1672769688433,58.78,12.772,12.752,41.08137784]
[1672769688616,2.4398795,12.773,12.752,41.08137784]
[1672769688617,2.4398795,12.773,12.754,30.0]
[1672769688829,2.4398795,12.773,12.756,30.0]
[1672769689455,0.06000001,12.763,12.756,30.0]
[1672769689999,0.06000001,12.763,12.756,87.93180793]
[1672769690209,0.06000001,12.763,12.756,99.01318577]
[1672769690396,0.06000001,12.763,12.756,145.83801345]
[1672769690729,2.4398795,12.773,12.757,30.0]
[1672769690934,2.4398795,12.773,12.76,8.62]
[1672769691138,2.4398795,12.773,12.761,30.0]
[1672769691348,2.4398795,12.773,12.762,20.0]
[1672769691563,2.4398795,12.773,12.763,30.0]
[1672769691768,2.4398795,12.773,12.765,30.0]
[1672769691978,2.4398795,12.773,12.766,20.0]
[1672769692200,2.4398795,12.773,12.767,30.0]
[1672769693034,2.4398795,12.773,12.767,435.9848948]
[1672769693245,2.4398795,12.773,12.767,493.91670273]
[1672769693469,2.4398795,12.773,12.767,435.9848948]
[1672769695143,2.4398795,12.773,12.767,405.9848948]
[1672769696835,2.4398795,12.773,12.768,30.0]
[1672769697161,2.4398795,12.773,12.768,435.9848948]
[1672769697338,7.95e-05,12.773,12.768,435.9848948]
[1672769697993,7.95e-05,12.773,12.768,405.9848948]
[1672769698607,7.95e-05,12.773,12.769,30.0]
[1672769698826,7.95e-05,12.773,12.768,405.9848948]
[1672769699229,7.95e-05,12.773,12.769,30.0]
[1672769699440,7.95e-05,12.773,12.768,405.9848948]
[1672769699652,7.95e-05,12.773,12.769,30.0]
[1672769701015,7.95e-05,12.773,12.769,435.9848948]
[1672769702094,7.95e-05,12.773,12.77,20.0]
[1672769702420,5.9e-05,12.783,12.771,30.0]
[1672769702627,5.9e-05,12.783,12.772,20.0]
[1672769702945,5.9e-05,12.783,12.772,31.08137784]
[1672769703166,5.9e-05,12.783,12.773,87.93180793]
[1672769703349,5.9e-05,12.783,12.774,20.0]
[1672769703558,5.9e-05,12.783,12.774,57.93180793]
[1672769703887,5.9e-05,12.783,12.77,405.9848948]
[1672769704720,58.73,12.782,12.77,405.9848948]
[1672769705456,8.62,12.78,12.77,405.9848948]
[1672769705682,78.75,12.779,12.77,405.9848948]
[1672769705883,30.0,12.778,12.77,405.9848948]
[1672769706204,30.0,12.776,12.77,405.9848948]
[1672769706407,30.0,12.774,12.77,405.9848948]
[1672769706613,58.77,12.773,12.77,405.9848948]
[1672769707243,58.76,12.775,12.77,405.9848948]
[1672769707553,58.76,12.776,12.77,405.9848948]
[1672769707766,30.0,12.775,12.77,405.9848948]
[1672769707982,30.0,12.773,12.77,405.9848948]
[1672769708198,58.78,12.772,12.77,405.9848948]
[1672769708623,82.27047593,12.771,12.77,405.9848948]
[1672769708938,193.36650201,12.771,12.77,405.9848948]
[1672769709985,193.36650201,12.771,12.77,245.3248948]
[1672769710201,193.36650201,12.771,12.77,0.0048948]
[1672769710417,193.36650201,12.771,12.76,2.4398205]
[1672769710418,55.18544289,12.769,12.76,2.4398205]
[1672769710603,108.8,12.768,12.76,0.0098205]
[1672769710811,138.24072373,12.768,12.76,0.0098205]
[1672769711141,52.36636217,12.767,12.76,0.0098205]
[1672769711345,30.0,12.765,12.76,0.0098205]
[1672769711558,30.0,12.763,12.75,41.2866279]
[1672769711763,30.0,12.759,12.75,41.2866279]
[1672769711970,78.84,12.758,12.75,41.2866279]
[1672769712190,108.34522489,12.758,12.75,41.2866279]
[1672769712405,30.0,12.757,12.75,41.2866279]
[1672769712621,30.0,12.755,12.75,41.2866279]
[1672769713985,30.0,12.753,12.75,41.2866279]
[1672769715245,30.0,12.753,12.75,0.0066279]
[1672769715576,58.87,12.752,12.75,0.0066279]
[1672769715769,30.0,12.751,12.75,0.0066279]
[1672769715989,88.88,12.751,12.75,0.0066279]
[1672769716306,193.5168381,12.751,12.75,0.0066279]
[1672769716515,30.0,12.75,12.733,30.0]
[1672769716716,30.0,12.748,12.732,30.0]
[1672769716928,30.0,12.746,12.732,30.0]
[1672769717256,58.9,12.745,12.732,30.0]
[1672769717464,58.9,12.745,12.731,41.2866279]
[1672769717655,30.0,12.744,12.741,0.0023095]
[1672769717868,58.91,12.743,12.741,0.0023095]
[1672769718082,30.0,12.742,12.741,0.0023095]
[1672769718310,88.92,12.742,12.741,0.0023095]
[1672769718519,30.0,12.742,12.741,0.0023095]
[1672769718933,88.92,12.742,12.741,0.0023095]
[1672769719130,58.92,12.742,12.741,0.0023095]
[1672769719342,58.91,12.743,12.741,0.0023095]
[1672769719572,30.0,12.745,12.741,0.0023095]
[1672769719773,30.0,12.743,12.741,0.0023095]
[1672769719986,58.92,12.742,12.741,0.0023095]
[1672769721020,30.0,12.743,12.741,0.0023095]
[1672769721352,30.0,12.743,12.731,41.2866279]
[1672769721353,59.39365067,12.742,12.731,41.2866279]
[1672769721563,50.0,12.741,12.731,41.2866279]
[1672769721753,30.0,12.739,12.731,41.2866279]
[1672769721964,78.94,12.738,12.731,41.2866279]
[1672769722176,30.0,12.743,12.731,41.2866279]
[1672769722177,30.0,12.759,12.731,41.2866279]
[1672769722401,30.0,12.759,12.732,30.0]
[1672769722723,30.0,12.758,12.732,41.08137784]
[1672769722923,30.0,12.755,12.732,30.0]
[1672769723137,58.86,12.754,12.731,41.2866279]
[1672769723346,30.0,12.753,12.731,41.2866279]
[1672769723664,30.0,12.751,12.731,41.2866279]
[1672769723879,30.0,12.749,12.731,52.36800574]
[1672769724186,58.89,12.748,12.731,41.2866279]
[1672769724606,58.89,12.748,12.732,30.0]
[1672769724806,20.0,12.747,12.732,78.54214946]
[1672769725010,20.0,12.747,12.733,96.13404897]
[1672769725233,8.71,12.77,12.74,8.68]
[1672769725449,20.0,12.769,12.74,8.68]
[1672769725663,9.12190478,12.763,12.74,8.68]
[1672769725871,67.94190478,12.763,12.74,8.68]
[1672769726088,30.0,12.761,12.734,197.69014946]
[1672769726286,78.83,12.76,12.735,20.0]
[1672769726608,30.0,12.759,12.74,8.75]
[1672769726809,78.84,12.758,12.74,8.75]
[1672769727020,78.84,12.758,12.741,83.73420479]
[1672769727237,78.84,12.758,12.741,30.0]
[1672769727445,58.84,12.758,12.741,30.0]
[1672769727658,58.84,12.758,12.741,81.04679915]
[1672769727851,114.7848,12.759,12.741,134.78100394]
[1672769728385,114.7848,12.759,12.741,161.9834934]
[1672769728598,58.84,12.758,12.742,30.0]
[1672769729333,58.84,12.758,12.742,57.20248946]
[1672769729334,30.0,12.757,12.742,57.20248946]
[1672769729536,30.0,12.757,12.74,8.67]
[1672769729752,30.0,12.757,12.735,20.0]
[1672769729962,78.85,12.756,12.735,20.0]
[1672769730178,30.0,12.755,12.735,20.0]
[1672769730374,58.86,12.754,12.735,20.0]
[1672769730589,30.0,12.753,12.735,20.0]
[1672769731017,30.0,12.751,12.733,20.0]
[1672769731217,30.0,12.751,12.731,95.02083269]
[1672769731218,30.0,12.751,12.732,20.0]
[1672769731653,58.87,12.752,12.733,30.0]
[1672769731842,30.0,12.751,12.734,20.0]
[1672769732688,30.0,12.749,12.732,20.0]
[1672769732898,58.88,12.75,12.732,20.0]
[1672769733124,30.0,12.753,12.733,30.0]
[1672769733320,58.87,12.752,12.734,20.0]
[1672769733531,30.0,12.751,12.734,20.0]
[1672769734369,58.87,12.752,12.734,20.0]
[1672769734370,58.87,12.752,12.735,30.0]
[1672769734585,58.86,12.755,12.735,30.0]
[1672769734799,58.84,12.758,12.74,43.7]
[1672769735006,168.1813,12.763,12.742,30.0]
[1672769735226,168.1813,12.763,12.743,20.0]
[1672769735881,168.1813,12.763,12.743,31.08137784]
[1672769736082,168.1813,12.763,12.744,30.0]
[1672769736387,30.0,12.762,12.745,20.0]
[1672769736593,168.1813,12.763,12.745,20.0]
[1672769737219,109.3613,12.763,12.75,8.74]
[1672769738475,58.79,12.769,12.75,54.78137784]
[1672769738692,173.7236,12.772,12.751,50.0]
[1672769739101,173.7236,12.772,12.753,30.0]
[1672769739329,173.7236,12.772,12.754,20.0]
[1672769739541,173.7236,12.772,12.755,30.0]
[1672769739749,173.7236,12.772,12.755,41.08137784]
[1672769739943,114.9436,12.772,12.757,30.0]
[1672769740370,173.7236,12.772,12.757,30.0]
[1672769740580,173.7236,12.772,12.757,41.08137784]
[1672769740793,114.9436,12.772,12.757,41.08137784]
[1672769741007,0.0098795,12.764,12.758,57.20248946]
[1672769741204,0.0098795,12.764,12.759,30.0]
[1672769741421,0.0098795,12.764,12.759,142.40438178]
[1672769741632,0.0098795,12.773,12.76,162.40438178]
[1672769741848,0.0098795,12.773,12.761,3.027]
[1672769742058,0.0098795,12.773,12.761,67.84258263]
[1672769742270,0.0098795,12.773,12.762,20.0]
[1672769742465,0.0098795,12.773,12.764,30.0]
[1672769742684,58.69,12.792,12.766,30.0]
[1672769742895,58.69,12.792,12.77,43.64]
[1672769743095,58.67,12.796,12.771,32.19]
[1672769743306,58.69,12.792,12.771,43.27137784]
[1672769743524,58.69,12.792,12.772,41.08137784]
[1672769743745,58.69,12.792,12.774,30.0]
[1672769743977,58.69,12.792,12.775,20.0]
[1672769744148,58.69,12.792,12.776,30.0]
[1672769744359,30.0,12.795,12.776,30.0]
[1672769744584,58.68,12.794,12.777,47.58879915]
[1672769744783,58.69,12.792,12.772,30.0]
[1672769745215,58.69,12.792,12.773,31.08137784]
[1672769745524,8.67,12.8,12.773,31.08137784]
[1672769745525,30.0,12.795,12.773,50.63778979]
[1672769745744,8.67,12.79,12.76,213.04672257]
[1672769745931,58.73,12.782,12.766,114.0191]
[1672769746141,58.73,12.782,12.762,11.08137784]
[1672769746350,58.73,12.782,12.766,30.0]
[1672769747222,58.73,12.782,12.762,30.0]
[1672769748362,30.0,12.781,12.762,30.0]
[1672769748576,58.74,12.78,12.762,30.0]
[1672769749109,58.74,12.78,12.761,114.5894]
[1672769749110,30.0,12.778,12.761,114.5894]
[1672769749431,30.0,12.776,12.75,41.1998795]
[1672769749615,58.76,12.775,12.75,2.4398795]
[1672769749825,30.0,12.774,12.75,2.4398795]
[1672769750045,58.77,12.773,12.75,4.8458795]
[1672769750259,30.0,12.772,12.75,2.4398795]
[1672769750451,58.78,12.771,12.75,2.4398795]
[1672769750671,58.78,12.772,12.751,2.406]
[1672769750893,58.76,12.775,12.751,32.406]
[1672769751311,58.76,12.776,12.751,43.48737784]
[1672769752251,58.76,12.776,12.76,8.63]
[1672769752792,58.76,12.776,12.76,43.43]
[1672769752985,58.73,12.782,12.761,3.098]
[1672769753195,58.73,12.782,12.762,30.0]
[1672769753411,58.73,12.782,12.763,20.0]
[1672769753622,58.73,12.782,12.764,30.0]
[1672769753950,58.73,12.782,12.766,30.0]
[1672769755198,2.4398795,12.783,12.77,8.64]
[1672769759710,61.1698795,12.783,12.77,8.64]
[1672769760038,2.4398795,12.783,12.77,8.64]
[1672769762656,2.4398795,12.783,12.772,30.0]
[1672769762861,1.9398795,12.783,12.772,30.0]
[1672769763195,1.9398795,12.783,12.77,8.64]
[1672769763387,1.9398795,12.783,12.767,5.701]
[1672769764757,1.9398795,12.783,12.766,30.0]
[1672769765278,1.9398795,12.783,12.765,116.6316]
[1672769765497,1.9398795,12.783,12.766,20.0]
[1672769765820,31.9398795,12.783,12.766,20.0]
[1672769766467,30.0,12.781,12.766,20.0]
[1672769767083,30.0,12.781,12.765,116.6316]
[1672769767297,96.51190478,12.78,12.753,30.0]
[1672769767617,39.12190478,12.779,12.754,113.0567]
[1672769767821,30.0,12.777,12.754,113.0567]
[1672769768042,58.76,12.776,12.754,113.0567]
[1672769768230,30.0,12.775,12.754,113.0567]
[1672769768442,30.0,12.773,12.754,113.0567]
[1672769768656,78.78,12.772,12.754,0.5]
[1672769768867,47.25045818,12.771,12.754,0.5]
[1672769769191,58.79,12.77,12.754,0.5]
[1672769769387,58.27,12.774,12.754,0.5]
[1672769770126,30.0,12.773,12.754,0.5]
[1672769770332,58.78,12.772,12.754,0.5]
[1672769771401,58.76,12.775,12.754,0.5]
[1672769771594,58.76,12.777,12.754,30.5]
[1672769771922,30.0,12.776,12.755,11.97]
[1672769772132,58.76,12.775,12.756,20.0]
[1672769772333,30.0,12.774,12.756,20.0]
[1672769772544,30.0,12.772,12.756,20.0]
[1672769772754,58.78,12.771,12.756,0.5]
[1672769773177,30.0,12.77,12.756,0.5]
[1672769773384,58.79,12.769,12.756,0.5]
[1672769773593,30.0,12.768,12.756,0.5]
[1672769773804,30.0,12.766,12.756,0.5]
[1672769774019,58.81,12.765,12.756,0.5]
[1672769774637,29.5,12.768,12.756,0.5]
[1672769774638,58.8,12.767,12.756,0.5]
[1672769774874,19.5,12.766,12.756,0.5]
[1672769775188,1.9398795,12.783,12.76,8.69]
[1672769775394,1.9398795,12.783,12.761,178.2263]
[1672769775586,58.73,12.782,12.758,51.5923619]
[1672769775801,115.77177631,12.782,12.756,0.5]
[1672769776017,30.0,12.78,12.756,0.5]
[1672769776229,30.0,12.778,12.756,20.5]
[1672769776434,30.0,12.776,12.756,20.5]
[1672769776767,58.76,12.775,12.756,20.5]
[1672769776972,30.0,12.774,12.756,0.5]
[1672769777191,30.0,12.772,12.756,0.5]
[1672769777405,58.78,12.771,12.756,0.5]
[1672769777717,50.0,12.77,12.756,0.5]
[1672769778029,30.0,12.768,12.756,0.5]
[1672769778237,58.8,12.767,12.756,0.5]
[1672769778446,58.79,12.769,12.756,0.5]
[1672769778762,113.5587,12.772,12.76,8.62]
[1672769778974,58.73,12.782,12.76,8.62]
[1672769779161,172.2887,12.782,12.762,30.0]
[1672769779371,172.2887,12.782,12.763,39.93]
[1672769779605,172.2887,12.782,12.764,30.0]
[1672769779913,172.2887,12.782,12.766,30.0]
[1672769780231,30.0,12.789,12.766,30.0]
[1672769780232,58.71,12.787,12.766,30.0]
[1672769780439,58.73,12.782,12.766,30.0]
[1672769781181,30.0,12.785,12.766,30.0]
[1672769781374,58.73,12.782,12.766,30.0]
[1672769783174,30.0,12.781,12.76,9.2]
[1672769783375,30.0,12.779,12.76,0.5]
[1672769783700,30.0,12.777,12.76,0.5]
[1672769783891,78.76,12.776,12.76,0.5]
[1672769784102,30.0,12.775,12.76,0.5]
[1672769784423,58.77,12.774,12.76,0.5]
[1672769785169,58.76,12.775,12.76,9.2]
[1672769786433,30.0,12.774,12.76,9.2]
[1672769786638,58.77,12.773,12.76,9.2]
[1672769786844,58.77,12.773,12.76,0.5]
[1672769787063,58.27,12.773,12.76,0.5]
[1672769787901,68.27,12.773,12.76,0.5]
[1672769789581,106.22896407,12.797,12.761,58.83]
[1672769789582,58.75,12.779,12.761,58.83]
[1672769789790,58.73,12.782,12.762,50.0]
[1672769789993,58.73,12.782,12.763,58.82]
[1672769790199,58.73,12.782,12.764,50.0]
[1672769791695,58.73,12.782,12.766,30.0]
[1672769792005,30.0,12.791,12.768,30.0]
[1672769792232,58.7,12.79,12.768,30.0]
[1672769792444,0.9398795,12.783,12.768,30.0]
[1672769793053,0.9398795,12.783,12.77,8.68]
[1672769793263,0.9398795,12.783,12.771,78.78]
[1672769793597,0.9398795,12.783,12.772,30.0]
[1672769794099,0.9398795,12.783,12.774,30.0]
[1672769794753,0.9398795,12.783,12.775,20.0]
[1672769795377,0.9398795,12.783,12.776,30.0]
[1672769797995,2.5414971,12.783,12.776,30.0]
[1672769798519,2.4398795,12.793,12.777,58.76]
[1672769798731,2.4398795,12.793,12.78,8.7]
[1672769800521,2.4398795,12.793,12.781,58.74]
[1672769800724,2.4398795,12.793,12.775,68.47548947]
[1672769800934,8.7,12.79,12.76,45.9698795]
[1672769801154,30.0,12.788,12.766,119.0775]
[1672769801373,192.4043,12.787,12.766,119.0775]
[1672769801569,30.0,12.786,12.767,30.0]
[1672769801775,58.72,12.785,12.767,30.0]
[1672769802527,88.71,12.786,12.767,30.0]
[1672769802733,58.71,12.786,12.767,30.0]
[1672769803346,30.0,12.785,12.767,30.0]
[1672769803575,30.0,12.783,12.766,123.3635]
[1672769804001,58.73,12.782,12.766,119.0775]
[1672769804193,9.12190478,12.784,12.766,119.0775]
[1672769804403,58.73,12.782,12.768,30.0]
[1672769804614,31.50480314,12.792,12.768,30.0]
[1672769804615,86.92,12.8,12.788,181.48981861]
[1672769804825,9.12190478,12.789,12.784,40.58120417]
[1672769805048,130.38,12.8,12.786,81.16240835]
[1672769805049,8.66,12.8,12.786,81.16240835]
[1672769805368,8.66,12.8,12.788,30.0]
[1672769805369,9.12190478,12.798,12.788,30.0]
[1672769805559,9.12190478,12.798,12.786,40.57273638]
[1672769805764,9.12190478,12.798,12.785,70.57273638]